[Event "*** Titled Tuesday Blitz"]
[Site "Chess.com"]
[Date "2021.02.02"]
[Round "3"]
[White "HouseOfDurin"]
[Black "ybruned"]
[Result "1-0"]
[WhiteElo "2113"]
[BlackElo "2318"]
[TimeControl "180+1"]
[EndTime "10:32:26 PST"]
[Termination "HouseOfDurin won by resignation"]

1. d4 {[%clk 0:03:00.9]} 1... Nf6 {[%clk 0:02:59.1]} 2. Bg5 {[%clk 0:03:01.3]}
2... e6 {[%clk 0:02:58.4]} 3. e4 {[%clk 0:03:00.7]} 3... h6 {[%clk 0:02:57.2]}
4. Bxf6 {[%clk 0:03:00.9]} 4... Qxf6 {[%clk 0:02:57.4]} 5. e5 {[%clk 0:03:01.5]}
5... Qd8 {[%clk 0:02:50.5]} 6. f4 {[%clk 0:03:01.3]} 6... d6 {[%clk 0:02:50.1]}
7. Nf3 {[%clk 0:03:01.5]} 7... dxe5 {[%clk 0:02:43.1]} 8. fxe5 {[%clk
0:03:02.4]} 8... c5 {[%clk 0:02:38.5]} 9. Bb5+ {[%clk 0:02:53.5]} 9... Bd7
{[%clk 0:02:33.5]} 10. Bxd7+ {[%clk 0:02:52.5]} 10... Qxd7 {[%clk 0:02:25.4]}
11. c3 {[%clk 0:02:49.4]} 11... cxd4 {[%clk 0:02:13.8]} 12. Qxd4 {[%clk
0:02:48.7]} 12... Qxd4 {[%clk 0:02:12.3]} 13. Nxd4 {[%clk 0:02:49.6]} 13... Nd7
{[%clk 0:01:28.9]} 14. Nb5 {[%clk 0:02:18.1]} 14... O-O-O {[%clk 0:01:21.8]} 15.
Nxa7+ {[%clk 0:02:16.2]} 15... Kb8 {[%clk 0:01:21.1]} 16. Nb5 {[%clk 0:02:16.8]}
16... Nxe5 {[%clk 0:01:21.4]} 17. Ke2 {[%clk 0:02:12.4]} 17... Be7 {[%clk
0:01:04.9]} 18. Nd2 {[%clk 0:02:11.1]} 18... Nd3 {[%clk 0:01:00.6]} 19. Nd4
{[%clk 0:02:03.4]} 19... Nf4+ {[%clk 0:00:59.5]} 20. Kf3 {[%clk 0:01:59.1]}
20... Nd5 {[%clk 0:00:50.4]} 21. Rhe1 {[%clk 0:01:51.7]} 21... Nc7 {[%clk
0:00:48.9]} 22. Re2 {[%clk 0:01:25.8]} 22... Bf6 {[%clk 0:00:46.3]} 23. N2b3
{[%clk 0:01:24.4]} 23... Rd5 {[%clk 0:00:41.8]} 24. Rae1 {[%clk 0:01:22.6]}
24... Rhd8 {[%clk 0:00:41.1]} 25. a4 {[%clk 0:01:11.1]} 25... e5 {[%clk
0:00:30.2]} 26. Nc2 {[%clk 0:01:02.7]} 26... Ne6 {[%clk 0:00:27.7]} 27. g3
{[%clk 0:00:54]} 27... Ng5+ {[%clk 0:00:26.8]} 28. Kf2 {[%clk 0:00:51.9]} 28...
Ne6 {[%clk 0:00:26.9]} 29. Kf3 {[%clk 0:00:51.6]} 29... Rd3+ {[%clk 0:00:26.5]}
30. Re3 {[%clk 0:00:51.3]} 30... Rxe3+ {[%clk 0:00:26.1]} 31. Nxe3 {[%clk
0:00:47.4]} 31... Ng5+ {[%clk 0:00:24.1]} 32. Ke2 {[%clk 0:00:45.3]} 32... Ne6
{[%clk 0:00:22.2]} 33. Nd2 {[%clk 0:00:40.7]} 33... g6 {[%clk 0:00:20.6]} 34.
Ne4 {[%clk 0:00:40.4]} 34... Bg7 {[%clk 0:00:20.8]} 35. Rd1 {[%clk 0:00:39]}
35... Rxd1 {[%clk 0:00:19.4]} 36. Nxd1 {[%clk 0:00:39.9]} 36... f5 {[%clk
0:00:20.2]} 37. Nd6 {[%clk 0:00:29.6]} 37... Nc5 {[%clk 0:00:17.8]} 38. a5
{[%clk 0:00:22.2]} 38... Nd7 {[%clk 0:00:16.7]} 39. b4 {[%clk 0:00:19.6]} 39...
Bf8 {[%clk 0:00:17]} 40. Nf7 {[%clk 0:00:18]} 40... e4 {[%clk 0:00:15.8]} 41.
Ne3 {[%clk 0:00:16.4]} 41... Nf6 {[%clk 0:00:15]} 42. Nc4 {[%clk 0:00:15]} 42...
Nd5 {[%clk 0:00:14.7]} 43. Kd2 {[%clk 0:00:12.4]} 43... h5 {[%clk 0:00:14.7]}
44. Nfe5 {[%clk 0:00:12.4]} 44... Bh6+ {[%clk 0:00:14.6]} 45. Kc2 {[%clk
0:00:11.7]} 45... f4 {[%clk 0:00:11.4]} 46. gxf4 {[%clk 0:00:10.6]} 46... Bxf4
{[%clk 0:00:11.3]} 47. Nxg6 {[%clk 0:00:10.1]} 47... Bxh2 {[%clk 0:00:11.8]} 48.
Nh4 {[%clk 0:00:07.2]} 48... Bg3 {[%clk 0:00:11.3]} 49. Ng2 {[%clk 0:00:07.1]}
49... h4 {[%clk 0:00:11.6]} 50. Nce3 {[%clk 0:00:05]} 50... Nxe3+ {[%clk
0:00:09.6]} 51. Nxe3 {[%clk 0:00:04.8]} 51... h3 {[%clk 0:00:10.3]} 52. Nf1
{[%clk 0:00:05.4]} 52... h2 {[%clk 0:00:08.7]} 53. Nxg3 {[%clk 0:00:05.1]} 53...
e3 {[%clk 0:00:08]} 54. Kd3 {[%clk 0:00:05.2]} 54... Kc7 {[%clk 0:00:06.3]} 55.
Kxe3 {[%clk 0:00:05.5]} 55... Kc6 {[%clk 0:00:07.2]} 56. Nh1 {[%clk 0:00:05.6]}
56... Kb5 {[%clk 0:00:08.1]} 57. Kd3 {[%clk 0:00:05.9]} 57... Ka6 {[%clk
0:00:08.3]} 58. c4 {[%clk 0:00:05.6]} 58... b6 {[%clk 0:00:09.2]} 59. Kd4 {[%clk
0:00:06.1]} 59... Kb7 {[%clk 0:00:09.4]} 60. axb6 {[%clk 0:00:05.7]} 1-0

[Event "*** Titled Tuesday Blitz"]
[Site "Chess.com"]
[Date "2021.02.02"]
[Round "3"]
[White "sakkikuska"]
[Black "Susik_Gaboyan"]
[Result "0-1"]
[WhiteElo "2438"]
[BlackElo "2297"]
[TimeControl "180+1"]
[EndTime "10:32:29 PST"]
[Termination "Susik_Gaboyan won by resignation"]

1. e4 {[%clk 0:02:58.1]} 1... c5 {[%clk 0:02:55.9]} 2. Nf3 {[%clk 0:02:58.4]}
2... Nc6 {[%clk 0:02:55.6]} 3. d4 {[%clk 0:02:59]} 3... cxd4 {[%clk 0:02:56.5]}
4. Nxd4 {[%clk 0:02:59.9]} 4... Nf6 {[%clk 0:02:57.4]} 5. Nc3 {[%clk 0:03:00.1]}
5... e5 {[%clk 0:02:58.1]} 6. Ndb5 {[%clk 0:03:00.2]} 6... d6 {[%clk 0:02:58.5]}
7. Bg5 {[%clk 0:02:59.1]} 7... a6 {[%clk 0:02:58.8]} 8. Na3 {[%clk 0:02:56.5]}
8... b5 {[%clk 0:02:59.7]} 9. Nd5 {[%clk 0:02:56.3]} 9... Be7 {[%clk 0:03:00.2]}
10. Bxf6 {[%clk 0:02:55.9]} 10... Bxf6 {[%clk 0:03:01.1]} 11. c3 {[%clk
0:02:56.6]} 11... Bg5 {[%clk 0:03:01.5]} 12. Nc2 {[%clk 0:02:55]} 12... Ne7
{[%clk 0:03:02]} 13. Ncb4 {[%clk 0:02:54.2]} 13... O-O {[%clk 0:02:58.7]} 14. a4
{[%clk 0:02:51.6]} 14... bxa4 {[%clk 0:02:53.9]} 15. Rxa4 {[%clk 0:02:51.3]}
15... a5 {[%clk 0:02:54.8]} 16. Nxe7+ {[%clk 0:02:49.7]} 16... Qxe7 {[%clk
0:02:51.5]} 17. Nd5 {[%clk 0:02:49.9]} 17... Qb7 {[%clk 0:02:45.7]} 18. b3
{[%clk 0:02:45.7]} 18... Bd7 {[%clk 0:02:40.1]} 19. Ra2 {[%clk 0:02:40.8]} 19...
Bc6 {[%clk 0:02:23.1]} 20. Bc4 {[%clk 0:02:39.6]} 20... Bb5 {[%clk 0:02:10.3]}
21. O-O {[%clk 0:01:32.6]} 21... Bxc4 {[%clk 0:02:05.2]} 22. bxc4 {[%clk
0:01:33.5]} 22... f5 {[%clk 0:01:53.1]} 23. exf5 {[%clk 0:01:30.5]} 23... Rxf5
{[%clk 0:01:46]} 24. Qg4 {[%clk 0:01:30.7]} 24... Qf7 {[%clk 0:01:27.4]} 25.
Rfa1 {[%clk 0:01:23.2]} 25... h6 {[%clk 0:00:56.6]} 26. Qe4 {[%clk 0:01:14.8]}
26... Rf8 {[%clk 0:00:48]} 27. f3 {[%clk 0:01:11.6]} 27... Bd8 {[%clk
0:00:46.8]} 28. Rb1 {[%clk 0:00:44]} 28... Qg6 {[%clk 0:00:21.5]} 29. Rab2
{[%clk 0:00:18.3]} 29... Qg5 {[%clk 0:00:16.5]} 30. Qe3 {[%clk 0:00:09.1]} 30...
Qg6 {[%clk 0:00:13.5]} 31. Qe4 {[%clk 0:00:03.4]} 31... Qg5 {[%clk 0:00:11.5]}
32. Qe3 {[%clk 0:00:04.1]} 32... Qh4 {[%clk 0:00:11.7]} 33. Rb8 {[%clk
0:00:02.1]} 33... Qxc4 {[%clk 0:00:08.5]} 34. Rxd8 {[%clk 0:00:01.5]} 34... Qxd5
{[%clk 0:00:07.9]} 35. Rxf8+ {[%clk 0:00:01.8]} 35... Rxf8 {[%clk 0:00:08.8]}
36. Qb6 {[%clk 0:00:01.2]} 36... Qc5+ {[%clk 0:00:07.6]} 37. Qxc5 {[%clk
0:00:01.5]} 37... dxc5 {[%clk 0:00:08.5]} 38. Rb5 {[%clk 0:00:02.2]} 38... Ra8
{[%clk 0:00:08.9]} 39. Rxc5 {[%clk 0:00:01.6]} 39... a4 {[%clk 0:00:09.2]} 40.
Rxe5 {[%clk 0:00:01.7]} 40... a3 {[%clk 0:00:09.9]} 41. Re1 {[%clk 0:00:02.3]}
41... a2 {[%clk 0:00:10.8]} 42. Ra1 {[%clk 0:00:02.7]} 42... Kf7 {[%clk
0:00:11.7]} 43. Kf2 {[%clk 0:00:03.3]} 43... Ke6 {[%clk 0:00:12.6]} 44. Ke2
{[%clk 0:00:04]} 44... Kd5 {[%clk 0:00:13.5]} 45. Kd3 {[%clk 0:00:04.4]} 45...
Ra3 {[%clk 0:00:11.1]} 46. Kc2 {[%clk 0:00:03.1]} 46... Kc4 {[%clk 0:00:11]} 47.
Kb2 {[%clk 0:00:03.2]} 47... Ra6 {[%clk 0:00:07.5]} 48. Rxa2 {[%clk 0:00:02.4]}
48... Rxa2+ {[%clk 0:00:08.4]} 49. Kxa2 {[%clk 0:00:03.2]} 49... Kxc3 {[%clk
0:00:09.3]} 50. g4 {[%clk 0:00:02.9]} 50... Kd3 {[%clk 0:00:09.7]} 51. f4 {[%clk
0:00:03.2]} 51... Ke4 {[%clk 0:00:09.8]} 52. g5 {[%clk 0:00:01.2]} 52... h5
{[%clk 0:00:07.5]} 53. Kb2 {[%clk 0:00:01.7]} 53... Kxf4 {[%clk 0:00:07.8]} 54.
Kc2 {[%clk 0:00:02.5]} 54... Kxg5 {[%clk 0:00:08.1]} 55. Kd2 {[%clk 0:00:03.3]}
55... Kh4 {[%clk 0:00:09]} 56. Ke2 {[%clk 0:00:04]} 56... Kh3 {[%clk 0:00:09]}
57. Kf2 {[%clk 0:00:04.9]} 57... Kxh2 {[%clk 0:00:08.5]} 0-1

[Event "*** Titled Tuesday Blitz"]
[Site "Chess.com"]
[Date "2021.02.02"]
[Round "3"]
[White "Kassimov_B"]
[Black "druskacik"]
[Result "0-1"]
[WhiteElo "2407"]
[BlackElo "2609"]
[TimeControl "180+1"]
[EndTime "10:32:30 PST"]
[Termination "druskacik won by resignation"]

1. e4 {[%clk 0:03:00.9]} 1... c5 {[%clk 0:02:58.3]} 2. Nf3 {[%clk 0:03:00.6]}
2... Nc6 {[%clk 0:02:58.3]} 3. Bb5 {[%clk 0:03:00.3]} 3... g6 {[%clk 0:02:57.4]}
4. Bxc6 {[%clk 0:03:00.3]} 4... dxc6 {[%clk 0:02:57.1]} 5. d3 {[%clk 0:03:00.8]}
5... Bg7 {[%clk 0:02:57.3]} 6. h3 {[%clk 0:03:00.8]} 6... Nf6 {[%clk 0:02:57.7]}
7. Nc3 {[%clk 0:03:00.4]} 7... Nd7 {[%clk 0:02:57.2]} 8. Be3 {[%clk 0:02:59.6]}
8... e5 {[%clk 0:02:57.9]} 9. O-O {[%clk 0:02:59]} 9... Qe7 {[%clk 0:02:56.9]}
10. Qd2 {[%clk 0:02:58.3]} 10... h6 {[%clk 0:02:56.6]} 11. Nh2 {[%clk
0:02:48.8]} 11... Nf8 {[%clk 0:02:56.7]} 12. a3 {[%clk 0:02:45.8]} 12... Ne6
{[%clk 0:02:53.6]} 13. Ne2 {[%clk 0:02:45.9]} 13... Nd4 {[%clk 0:02:15.6]} 14.
Rab1 {[%clk 0:02:44.2]} 14... Be6 {[%clk 0:02:13.7]} 15. b4 {[%clk 0:02:42.4]}
15... cxb4 {[%clk 0:01:24.7]} 16. axb4 {[%clk 0:02:39.7]} 16... Nxe2+ {[%clk
0:01:17.7]} 17. Qxe2 {[%clk 0:02:39.3]} 17... O-O {[%clk 0:01:14.3]} 18. Bc5
{[%clk 0:02:38.8]} 18... Qd7 {[%clk 0:01:11.5]} 19. Bxf8 {[%clk 0:02:37.9]}
19... Bxf8 {[%clk 0:01:12.4]} 20. Ng4 {[%clk 0:02:19.3]} 20... Bxg4 {[%clk
0:01:02.1]} 21. Qxg4 {[%clk 0:02:17]} 21... Qd4 {[%clk 0:01:00.9]} 22. b5 {[%clk
0:02:16.9]} 22... h5 {[%clk 0:00:53.1]} 23. Qg3 {[%clk 0:02:07.3]} 23... Rc8
{[%clk 0:00:46.5]} 24. bxc6 {[%clk 0:02:05.3]} 24... b6 {[%clk 0:00:46.6]} 25.
Qe3 {[%clk 0:01:57.7]} 25... Qc3 {[%clk 0:00:38.1]} 26. Ra1 {[%clk 0:01:29.7]}
26... Bc5 {[%clk 0:00:26.6]} 27. Qe1 {[%clk 0:01:29.3]} 27... Qxc2 {[%clk
0:00:25.9]} 28. Rxa7 {[%clk 0:01:27.6]} 28... Rxc6 {[%clk 0:00:25.1]} 29. Rd7
{[%clk 0:01:22.3]} 29... Rf6 {[%clk 0:00:23.4]} 30. Qb1 {[%clk 0:01:01.9]} 30...
Bxf2+ {[%clk 0:00:15.4]} 31. Kh1 {[%clk 0:01:01.8]} 31... Qe2 {[%clk 0:00:14.9]}
32. Rc7 {[%clk 0:00:55.8]} 32... Qe3 {[%clk 0:00:13.6]} 33. Rc8+ {[%clk
0:00:54.2]} 33... Kg7 {[%clk 0:00:13.6]} 34. Rc2 {[%clk 0:00:54.7]} 34... Bh4
{[%clk 0:00:12.3]} 35. Rxf6 {[%clk 0:00:54.9]} 35... Bxf6 {[%clk 0:00:13.2]} 36.
Rc6 {[%clk 0:00:52]} 36... Bg5 {[%clk 0:00:11.2]} 37. Rxb6 {[%clk 0:00:48.4]}
37... Bf4 {[%clk 0:00:11]} 38. Rd6 {[%clk 0:00:44.9]} 38... Qg3 {[%clk
0:00:07.8]} 39. Qg1 {[%clk 0:00:43.8]} 39... Be3 {[%clk 0:00:07.9]} 40. Qf1
{[%clk 0:00:43.5]} 40... Bf4 {[%clk 0:00:08.4]} 41. Qg1 {[%clk 0:00:36.4]} 41...
g5 {[%clk 0:00:08.8]} 42. Ra6 {[%clk 0:00:31.3]} 42... g4 {[%clk 0:00:09.1]} 43.
Ra2 {[%clk 0:00:27.9]} 43... Kh7 {[%clk 0:00:08.4]} 44. Rf2 {[%clk 0:00:20.4]}
44... gxh3 {[%clk 0:00:07.7]} 45. Rxf4 {[%clk 0:00:20.3]} 45... exf4 {[%clk
0:00:05.9]} 46. gxh3 {[%clk 0:00:20.4]} 46... Qxh3+ {[%clk 0:00:06]} 47. Qh2
{[%clk 0:00:20.6]} 47... Qf1+ {[%clk 0:00:04.8]} 48. Qg1 {[%clk 0:00:20.4]}
48... Qxd3 {[%clk 0:00:05.4]} 49. Qg2 {[%clk 0:00:16.6]} 49... Qg3 {[%clk
0:00:05.2]} 50. Qc2 {[%clk 0:00:13.1]} 50... Qf3+ {[%clk 0:00:04.8]} 51. Kh2
{[%clk 0:00:12.4]} 51... Qg3+ {[%clk 0:00:05.7]} 52. Kh1 {[%clk 0:00:12.3]}
52... h4 {[%clk 0:00:05.7]} 53. e5+ {[%clk 0:00:12.1]} 53... Qg6 {[%clk
0:00:06.2]} 54. Qf2 {[%clk 0:00:11.6]} 54... Qg3 {[%clk 0:00:06.2]} 55. Qc2+
{[%clk 0:00:11.8]} 55... Kg7 {[%clk 0:00:06.9]} 56. Qf5 {[%clk 0:00:11.7]} 56...
f3 {[%clk 0:00:06.6]} 57. Qf6+ {[%clk 0:00:11.8]} 57... Kg8 {[%clk 0:00:07.1]}
58. Qd8+ {[%clk 0:00:09.7]} 58... Kh7 {[%clk 0:00:07.7]} 59. Qd2 {[%clk
0:00:10.1]} 59... h3 {[%clk 0:00:06.3]} 60. Qd3+ {[%clk 0:00:10.5]} 60... Kg7
{[%clk 0:00:06.2]} 61. Qd2 {[%clk 0:00:10.5]} 61... Qg2+ {[%clk 0:00:06.3]} 0-1

[Event "*** Titled Tuesday Blitz"]
[Site "Chess.com"]
[Date "2021.02.02"]
[Round "3"]
[White "Carnivoras"]
[Black "Zmof"]
[Result "0-1"]
[WhiteElo "2598"]
[BlackElo "2123"]
[TimeControl "180+1"]
[EndTime "10:32:31 PST"]
[Termination "Zmof won on time"]

1. d4 {[%clk 0:02:40.8]} 1... Nf6 {[%clk 0:02:58.6]} 2. c4 {[%clk 0:02:41.4]}
2... e6 {[%clk 0:02:58.8]} 3. Nc3 {[%clk 0:02:41.3]} 3... Bb4 {[%clk 0:02:58.7]}
4. g3 {[%clk 0:02:41.4]} 4... d5 {[%clk 0:02:57.5]} 5. Bg2 {[%clk 0:02:41.1]}
5... O-O {[%clk 0:02:56.5]} 6. Nf3 {[%clk 0:02:41.1]} 6... Ne4 {[%clk
0:02:50.4]} 7. Qc2 {[%clk 0:02:39.8]} 7... c5 {[%clk 0:02:48.3]} 8. O-O {[%clk
0:02:35.4]} 8... cxd4 {[%clk 0:02:41.9]} 9. Nxe4 {[%clk 0:02:30.7]} 9... dxe4
{[%clk 0:02:41.2]} 10. Qxe4 {[%clk 0:02:31.6]} 10... Nc6 {[%clk 0:02:39.8]} 11.
a3 {[%clk 0:02:27.7]} 11... Be7 {[%clk 0:02:39.2]} 12. b4 {[%clk 0:02:27.3]}
12... f5 {[%clk 0:02:35.6]} 13. Qc2 {[%clk 0:02:26.7]} 13... Bf6 {[%clk
0:02:32.6]} 14. Bb2 {[%clk 0:02:27]} 14... e5 {[%clk 0:02:30.6]} 15. Rfd1 {[%clk
0:02:09.7]} 15... Qe7 {[%clk 0:02:30.3]} 16. Rac1 {[%clk 0:02:04]} 16... Be6
{[%clk 0:02:28]} 17. Nd2 {[%clk 0:02:01.4]} 17... Rac8 {[%clk 0:02:18.8]} 18.
Nb3 {[%clk 0:01:53]} 18... b6 {[%clk 0:02:06.4]} 19. e3 {[%clk 0:00:34]} 19...
dxe3 {[%clk 0:02:01.8]} 20. fxe3 {[%clk 0:00:34.9]} 20... e4 {[%clk 0:01:50.2]}
21. Bxf6 {[%clk 0:00:32.7]} 21... Qxf6 {[%clk 0:01:50]} 22. Nd4 {[%clk
0:00:30.6]} 22... Ne5 {[%clk 0:01:44.4]} 23. Bf1 {[%clk 0:00:26.1]} 23... Rfd8
{[%clk 0:01:34.6]} 24. Nxe6 {[%clk 0:00:21.4]} 24... Qxe6 {[%clk 0:01:33.9]} 25.
Rxd8+ {[%clk 0:00:20.6]} 25... Rxd8 {[%clk 0:01:33.2]} 26. Rd1 {[%clk
0:00:21.3]} 26... Rxd1 {[%clk 0:01:13.5]} 27. Qxd1 {[%clk 0:00:22.2]} 27... h6
{[%clk 0:01:11.6]} 28. Qd8+ {[%clk 0:00:17.8]} 28... Kh7 {[%clk 0:01:11.3]} 29.
Qd5 {[%clk 0:00:16.6]} 29... Nf3+ {[%clk 0:00:59]} 30. Kg2 {[%clk 0:00:08.3]}
30... Qf6 {[%clk 0:00:58.8]} 31. Be2 {[%clk 0:00:05.9]} 31... Ne5 {[%clk
0:00:42.6]} 32. c5 {[%clk 0:00:06.4]} 32... bxc5 {[%clk 0:00:41.2]} 33. bxc5
{[%clk 0:00:07.3]} 33... h5 {[%clk 0:00:34.5]} 34. Qd6 {[%clk 0:00:07.6]} 34...
Qxd6 {[%clk 0:00:16.4]} 35. cxd6 {[%clk 0:00:08.5]} 35... Nf7 {[%clk 0:00:16.8]}
36. d7 {[%clk 0:00:08.3]} 36... g6 {[%clk 0:00:16.3]} 37. Bc4 {[%clk 0:00:07.7]}
37... Nd8 {[%clk 0:00:15.7]} 38. h3 {[%clk 0:00:07.5]} 38... Kg7 {[%clk
0:00:16]} 39. g4 {[%clk 0:00:08.1]} 39... hxg4 {[%clk 0:00:16.1]} 40. hxg4
{[%clk 0:00:09]} 40... Kf6 {[%clk 0:00:16.5]} 41. Kg3 {[%clk 0:00:09.1]} 41...
Ke7 {[%clk 0:00:15.4]} 42. Bb5 {[%clk 0:00:09.4]} 42... Ne6 {[%clk 0:00:13.2]}
43. gxf5 {[%clk 0:00:08.5]} 43... gxf5 {[%clk 0:00:13.2]} 44. Kh4 {[%clk
0:00:08.9]} 44... f4 {[%clk 0:00:05.1]} 45. exf4 {[%clk 0:00:08.5]} 45... Nxf4
{[%clk 0:00:05.6]} 46. Kg4 {[%clk 0:00:08.4]} 46... Ne6 {[%clk 0:00:05.1]} 47.
Bc6 {[%clk 0:00:04.8]} 47... e3 {[%clk 0:00:03.2]} 48. Bb5 {[%clk 0:00:03.8]}
48... Nd4 {[%clk 0:00:01.7]} 49. Bd3 {[%clk 0:00:03.5]} 49... e2 {[%clk
0:00:01.8]} 50. Bxe2 {[%clk 0:00:03.9]} 50... Nxe2 {[%clk 0:00:02.1]} 51. Kf3
{[%clk 0:00:04.8]} 51... Nd4+ {[%clk 0:00:02.5]} 52. Ke4 {[%clk 0:00:05.7]}
52... Nc6 {[%clk 0:00:03]} 53. Kd5 {[%clk 0:00:05.6]} 53... Kxd7 {[%clk
0:00:03.3]} 54. Kc5 {[%clk 0:00:06.5]} 54... Kc7 {[%clk 0:00:03.7]} 55. Kb5
{[%clk 0:00:07.4]} 55... Kb7 {[%clk 0:00:03.9]} 56. Kc5 {[%clk 0:00:08.3]} 56...
a6 {[%clk 0:00:04.3]} 57. Kc4 {[%clk 0:00:08.5]} 57... Kb6 {[%clk 0:00:04.8]}
58. Kb3 {[%clk 0:00:09.3]} 58... Ka5 {[%clk 0:00:04.9]} 59. Kc3 {[%clk
0:00:10.2]} 59... Ka4 {[%clk 0:00:05]} 60. Kb2 {[%clk 0:00:10.4]} 60... a5
{[%clk 0:00:04.8]} 61. Ka2 {[%clk 0:00:10]} 61... Nd4 {[%clk 0:00:04.9]} 0-1

[Event "*** Titled Tuesday Blitz"]
[Site "Chess.com"]
[Date "2021.02.02"]
[Round "3"]
[White "Forantes"]
[Black "GiorgianBarbosa"]
[Result "1-0"]
[WhiteElo "2285"]
[BlackElo "2490"]
[TimeControl "180+1"]
[EndTime "10:32:32 PST"]
[Termination "Forantes won on time"]

1. e4 {[%clk 0:03:00.9]} 1... c6 {[%clk 0:02:59.9]} 2. Nc3 {[%clk 0:03:00.1]}
2... d5 {[%clk 0:03:00.8]} 3. Nf3 {[%clk 0:03:00.1]} 3... dxe4 {[%clk
0:03:00.4]} 4. Nxe4 {[%clk 0:03:00.3]} 4... Nf6 {[%clk 0:03:01.3]} 5. Ng3 {[%clk
0:03:00.1]} 5... Bg4 {[%clk 0:02:59.4]} 6. h3 {[%clk 0:02:56.1]} 6... Bxf3
{[%clk 0:02:59]} 7. Qxf3 {[%clk 0:02:56.5]} 7... g6 {[%clk 0:02:59]} 8. c3
{[%clk 0:02:52.8]} 8... Bg7 {[%clk 0:02:59.4]} 9. d4 {[%clk 0:02:52.9]} 9... O-O
{[%clk 0:03:00.1]} 10. Bd3 {[%clk 0:02:50]} 10... Nbd7 {[%clk 0:03:00.1]} 11.
O-O {[%clk 0:02:48.5]} 11... e5 {[%clk 0:03:00.2]} 12. Bg5 {[%clk 0:02:42.5]}
12... exd4 {[%clk 0:02:57.8]} 13. cxd4 {[%clk 0:02:38.3]} 13... c5 {[%clk
0:02:52.2]} 14. Qxb7 {[%clk 0:02:21.3]} 14... cxd4 {[%clk 0:02:51.6]} 15. b3
{[%clk 0:01:47.5]} 15... Nc5 {[%clk 0:02:46.6]} 16. Qb5 {[%clk 0:01:46.2]} 16...
Nxd3 {[%clk 0:02:44.2]} 17. Qxd3 {[%clk 0:01:47.1]} 17... h6 {[%clk 0:02:40]}
18. Bd2 {[%clk 0:01:39.7]} 18... Nd5 {[%clk 0:02:38]} 19. Rac1 {[%clk
0:01:33.5]} 19... Nc3 {[%clk 0:02:30.9]} 20. Rc2 {[%clk 0:01:31.8]} 20... Rc8
{[%clk 0:02:27.3]} 21. Rfc1 {[%clk 0:01:25.1]} 21... Qc7 {[%clk 0:01:52.4]} 22.
Bxc3 {[%clk 0:01:02.9]} 22... dxc3 {[%clk 0:01:51.8]} 23. Ne4 {[%clk 0:01:03.6]}
23... Rfd8 {[%clk 0:01:48.4]} 24. Qf3 {[%clk 0:00:57.8]} 24... Re8 {[%clk
0:01:02.5]} 25. Nf6+ {[%clk 0:00:47]} 25... Bxf6 {[%clk 0:00:54.3]} 26. Qxf6
{[%clk 0:00:47.9]} 26... Re6 {[%clk 0:00:22.7]} 27. Qxc3 {[%clk 0:00:46.4]}
27... Qxc3 {[%clk 0:00:23.1]} 28. Rxc3 {[%clk 0:00:46.4]} 28... Rxc3 {[%clk
0:00:24]} 29. Rxc3 {[%clk 0:00:46.1]} 29... Re1+ {[%clk 0:00:24.1]} 30. Kh2
{[%clk 0:00:46.1]} 30... Re2 {[%clk 0:00:25]} 31. a4 {[%clk 0:00:38]} 31... Rxf2
{[%clk 0:00:23.4]} 32. Rc7 {[%clk 0:00:38]} 32... Rb2 {[%clk 0:00:22.1]} 33. Rb7
{[%clk 0:00:36.8]} 33... a5 {[%clk 0:00:20.8]} 34. Kg3 {[%clk 0:00:35.9]} 34...
h5 {[%clk 0:00:20.9]} 35. h4 {[%clk 0:00:29.7]} 35... Kg7 {[%clk 0:00:20.6]} 36.
Rb6 {[%clk 0:00:29.1]} 36... Kf8 {[%clk 0:00:19.6]} 37. Kf3 {[%clk 0:00:28.8]}
37... Kg7 {[%clk 0:00:18.2]} 38. g3 {[%clk 0:00:28.8]} 38... Rc2 {[%clk
0:00:18.3]} 39. Rb5 {[%clk 0:00:28.2]} 39... Rc3+ {[%clk 0:00:18.5]} 40. Kf4
{[%clk 0:00:28]} 40... Rd3 {[%clk 0:00:18.4]} 41. Rxa5 {[%clk 0:00:17.6]} 41...
Rxb3 {[%clk 0:00:18.3]} 42. Rb5 {[%clk 0:00:16.3]} 42... Ra3 {[%clk 0:00:17.9]}
43. a5 {[%clk 0:00:16.1]} 43... Ra4+ {[%clk 0:00:18.4]} 44. Ke5 {[%clk
0:00:14.2]} 44... Ra3 {[%clk 0:00:18.2]} 45. Kd6 {[%clk 0:00:13.9]} 45... Rxg3
{[%clk 0:00:17.4]} 46. Kc6 {[%clk 0:00:12.8]} 46... Rg4 {[%clk 0:00:12.7]} 47.
a6 {[%clk 0:00:12.9]} 47... Ra4 {[%clk 0:00:11.5]} 48. Kb7 {[%clk 0:00:11.7]}
48... f5 {[%clk 0:00:10.8]} 49. a7 {[%clk 0:00:10.8]} 49... Kf6 {[%clk
0:00:09.9]} 50. a8=Q {[%clk 0:00:10.7]} 50... Rxa8 {[%clk 0:00:07.5]} 51. Kxa8
{[%clk 0:00:11.6]} 51... f4 {[%clk 0:00:08]} 52. Rg5 {[%clk 0:00:10.6]} 52... f3
{[%clk 0:00:03.2]} 53. Rg3 {[%clk 0:00:10.7]} 53... Kf5 {[%clk 0:00:02.8]} 54.
Rxf3+ {[%clk 0:00:08.9]} 54... Kg4 {[%clk 0:00:03.7]} 55. Rf6 {[%clk 0:00:09.1]}
55... Kxh4 {[%clk 0:00:03.6]} 56. Rxg6 {[%clk 0:00:09.7]} 56... Kh3 {[%clk
0:00:02.9]} 57. Kb7 {[%clk 0:00:09]} 57... h4 {[%clk 0:00:02.5]} 58. Kc6 {[%clk
0:00:09.6]} 58... Kh2 {[%clk 0:00:02.6]} 59. Kd5 {[%clk 0:00:10.3]} 59... h3
{[%clk 0:00:02.2]} 60. Ke4 {[%clk 0:00:10.7]} 60... Kh1 {[%clk 0:00:01.3]} 61.
Kf3 {[%clk 0:00:11.3]} 1-0